fUST/lending_fUST_20240105
["ID","MTS","AMOUNT","RATE_DAILY","PERIOD"]
[310225452,1704403854638,-151.0,0.00040273,2]
[310225454,1704403854647,-151.0,0.00040273,2]
[310225455,1704403854657,-500.0,0.00040273,7]
[310225458,1704403854666,-500.0,0.00040273,7]
[310225460,1704403854676,-500.0,0.00040273,7]
[310225462,1704403854685,-558.49,0.00040273,7]
[310225464,1704403854697,-500.0,0.00040273,7]
[310225465,1704403854707,-322.23628335,0.00040273,7]
[310225468,1704403854716,-500.0,0.00040273,7]
[310225470,1704403854726,-500.0,0.00040273,7]
[310225472,1704403854735,-500.0,0.00040273,7]
[310225474,1704403854745,-500.0,0.00040273,7]
[310225476,1704403854755,-500.0,0.00040273,7]
[310225478,1704403854764,-500.0,0.00040273,7]
[310225480,1704403854774,-576.98,0.00040273,7]
[310225482,1704403854783,-500.0,0.00040273,7]
[310225484,1704403854793,-1233.61,0.00040273,7]
[310225486,1704403854803,-500.0,0.00040273,7]
[310225487,1704403854813,-517.5,0.00040273,7]
[310225490,1704403854823,-500.0,0.00040273,7]
[310225492,1704403854833,-500.0,0.00040273,7]
[310225494,1704403854843,-617.08,0.00040273,7]
[310225496,1704403854853,-500.0,0.00040273,7]
[310225497,1704403854863,-691.0,0.00040273,7]
[310225499,1704403854873,-500.0,0.00040273,7]
[310225501,1704403854883,-500.0,0.00040273,7]
[310225503,1704403854892,-1564.77,0.00040273,2]
[310225505,1704403854902,-500.0,0.00040273,7]
[310225507,1704403854911,-552.88,0.00040273,7]
[310225509,1704403854921,-1532.91,0.00040273,7]
[310225511,1704403854931,-500.0,0.00040273,2]
[310225513,1704403854940,-500.0,0.00040273,7]
[310225515,1704403854951,-657.4,0.00040273,7]
[310225517,1704403854961,-377.72726954,0.00040273,7]
[310225520,1704403854971,-564.22848098,0.00040273,2]
[310225522,1704403854981,-500.0,0.00040273,7]
[310225524,1704403854990,-456.63975594,0.00040273,7]
[310225526,1704403855000,-500.0,0.00040273,7]
[310225528,1704403855009,-750.84,0.00040273,7]
[310225530,1704403855018,-520.0,0.00040273,7]
[310225532,1704403855027,-500.0,0.00040273,7]
[310225534,1704403855036,-500.0,0.00040273,7]
[310225536,1704403855047,-720.81,0.00040273,7]
[310225538,1704403855058,-1081.67,0.00040273,7]
[310225540,1704403855068,-500.0,0.00040273,7]
[310225542,1704403855079,-849.82,0.00040273,7]
[310225543,1704403855088,-1135.37,0.00040273,7]
[310225546,1704403855099,-3814.95,0.00040273,7]
[310225548,1704403855109,-512.69,0.00040273,7]
[310225550,1704403855119,-694.37,0.00040273,7]
[310225551,1704403855128,-748.22,0.00040273,7]
[310225554,1704403855138,-1373.82,0.00040273,7]
[310225556,1704403855148,-500.0,0.00040273,7]
[310225558,1704403855157,-500.0,0.00040273,7]
[310225560,1704403855167,-500.0,0.00040273,7]
[310225562,1704403855177,-1728.79,0.00040273,7]
[310225564,1704403855186,-500.0,0.00040273,7]
[310225566,1704403855197,-500.0,0.00040273,7]
[310225568,1704403855206,-623.76,0.00040273,7]
[310225570,1704403855215,-500.0,0.00040273,2]
[310225572,1704403855224,-500.0,0.00040273,7]
[310225574,1704403855234,-1506.71,0.00040273,7]
[310225576,1704403855243,-500.0,0.00040273,7]
[310225578,1704403855252,-1047.73,0.00040273,7]
[310225580,1704403855261,-500.0,0.00040273,7]
[310225582,1704403855271,-500.0,0.00040273,7]
[310225584,1704403855280,-500.0,0.00040273,7]
[310225586,1704403855289,-500.0,0.00040273,7]
[310225588,1704403855299,-500.0,0.00040273,7]
[310225590,1704403855308,-500.0,0.00040273,7]
[310225592,1704403855318,-705.34,0.00040273,7]
[310225594,1704403855327,-500.0,0.00040273,7]
[310225596,1704403855337,-744.85,0.00040273,7]
[310225598,1704403855346,-9877.37,0.00040273,7]
[310225599,1704403855357,-186.85583458,0.00040273,7]
[310225601,1704403855367,-500.0,0.00040273,7]
[310225602,1704403855376,-15428.1,0.00040273,7]
[310225603,1704403855385,-1089.44,0.00040273,7]
[310225604,1704403855395,-1654.23,0.00040273,7]
[310225605,1704403855404,-500.0,0.00040273,7]
[310225607,1704403855413,-970.41,0.00040273,7]
[310225609,1704403855423,-1937.04,0.00040273,7]
[310225611,1704403855432,-752.89,0.00040273,7]
[310225613,1704403855442,-188.5347605,0.00040273,7]
[310225615,1704403855453,-506.37017112,0.00040273,7]
[310225617,1704403855462,-8841.35,0.00040273,7]
[310225619,1704403855472,-2898.21,0.00040273,7]
[310225621,1704403855481,-500.0,0.00040273,7]
[310225623,1704403855491,-23122.23,0.00040273,7]
[310225625,1704403855502,-500.0,0.00040273,7]
[310225627,1704403855511,-6129.7,0.00040273,7]
[310225629,1704403855521,-500.0,0.00040273,7]
[310225642,1704403855621,-500.0,0.00040273,7]
[310225644,1704403855630,-603.41,0.00040273,7]
[310225646,1704403855640,-500.0,0.00040273,7]
[310225647,1704403855649,-1388.33,0.00040273,7]
[310225649,1704403855659,-500.0,0.00040273,7]
[310225652,1704403855669,-634.75,0.00040273,7]
[310225653,1704403855679,-617.62,0.00040273,7]
[310225655,1704403855689,-2149.26,0.00040273,7]
[310225658,1704403855701,-2932.15,0.00040273,7]
[310225659,1704403855711,-2164.45,0.00040273,7]
[310225661,1704403855720,-500.0,0.00040273,7]
[310225663,1704403855730,-500.0,0.00040273,7]
[310225666,1704403855740,-500.0,0.00040273,7]
[310225667,1704403855750,-500.0,0.00040273,7]
[310225670,1704403855759,-2032.27,0.00040273,7]
[310225671,1704403855769,-841.33,0.00040273,7]
[310225674,1704403855779,-768.62,0.00040273,7]
[310225676,1704403855788,-3336.95,0.00040273,7]
[310225678,1704403855798,-433.16916227,0.00040273,7]
[310225680,1704403855807,-500.0,0.00040273,7]
[310225682,1704403855817,-608.97,0.00040273,7]
[310225684,1704403855827,-500.0,0.00040273,7]
[310225685,1704403855836,-500.0,0.00040273,7]
[310225688,1704403855846,-500.0,0.00040273,7]
[310225689,1704403855855,-200.13943,0.000405,12]
[310225691,1704403855865,-500.0,0.00040547,7]
[310225693,1704403855875,-500.0,0.00040547,7]
[310225695,1704403855885,-558.49,0.00040547,7]
[310225697,1704403855894,-500.0,0.00040547,7]
[310225699,1704403855903,-500.0,0.00040547,7]
[310225701,1704403855913,-569.39021834,0.00040547,7]
[310225703,1704403855922,-500.0,0.00040547,7]
[310225705,1704403855932,-500.0,0.00040547,7]
[310225707,1704403855940,-500.0,0.00040547,7]
[310225709,1704403855950,-500.0,0.00040547,7]
[310225711,1704403855959,-576.98,0.00040547,7]
[310225713,1704403855968,-500.0,0.00040547,7]
[310225715,1704403855977,-1233.61,0.00040547,7]
[310225717,1704403855988,-500.0,0.00040547,7]
[310225719,1704403855998,-517.5,0.00040547,7]
[310225721,1704403856008,-500.0,0.00040547,7]
[310225723,1704403856018,-500.0,0.00040547,7]
[310225725,1704403856027,-617.08,0.00040547,7]
[310225727,1704403856037,-500.0,0.00040547,7]
[310225729,1704403856046,-691.0,0.00040547,7]
[310225731,1704403856055,-500.0,0.00040547,7]
[310225733,1704403856064,-1564.77,0.00040547,2]
[310225736,1704403856074,-521.89274136,0.00040547,7]
[310225737,1704403856084,-500.0,0.00040547,7]
[310225739,1704403856092,-552.88,0.00040547,7]
[310225741,1704403856101,-1532.91,0.00040547,7]
[310225743,1704403856111,-500.0,0.00040547,2]
[310225745,1704403856120,-500.0,0.00040547,7]
[310225747,1704403856130,-657.4,0.00040547,7]
[310225749,1704403856139,-500.0,0.00040547,7]
[310225751,1704403856148,-500.0,0.00040547,7]
[310225753,1704403856157,-750.84,0.00040547,7]
[310225756,1704403856167,-520.0,0.00040547,7]
[310225758,1704403856177,-500.0,0.00040547,7]
[310225760,1704403856186,-380.08054072,0.00040547,7]
[310225761,1704403856196,-720.81,0.00040547,7]
[310225763,1704403856206,-1081.67,0.00040547,7]
[310225765,1704403856216,-500.0,0.00040547,7]
[310225767,1704403856225,-849.82,0.00040547,7]
[310225770,1704403856234,-1135.37,0.00040547,7]
[310225771,1704403856244,-3814.95,0.00040547,7]
[310225774,1704403856254,-512.69,0.00040547,7]
[310225776,1704403856263,-694.37,0.00040547,7]
[310225778,1704403856272,-748.22,0.00040547,7]
[310225780,1704403856282,-1373.82,0.00040547,7]
[310225782,1704403856290,-500.0,0.00040547,7]
[310225784,1704403856299,-500.0,0.00040547,7]
[310225786,1704403856309,-500.0,0.00040547,7]
[310225788,1704403856318,-1728.79,0.00040547,7]
[310225790,1704403856327,-500.0,0.00040547,7]
[310225791,1704403856338,-500.0,0.00040547,7]
[310225793,1704403856348,-623.76,0.00040547,7]
[310225796,1704403856358,-500.0,0.00040547,2]
[310225798,1704403856368,-500.0,0.00040547,7]
[310225800,1704403856378,-1506.71,0.00040547,7]
[310225801,1704403856388,-500.0,0.00040547,7]
[310225803,1704403856397,-1047.73,0.00040547,7]
[310225805,1704403856406,-500.0,0.00040547,7]
[310225807,1704403856416,-500.0,0.00040547,7]
[310225809,1704403856426,-500.0,0.00040547,7]
[310225812,1704403856436,-500.0,0.00040547,7]
[310225814,1704403856446,-500.0,0.00040547,7]
[310225815,1704403856455,-500.0,0.00040547,7]
[310225818,1704403856465,-705.34,0.00040547,7]
[310225820,1704403856474,-500.0,0.00040547,7]
[310225822,1704403856483,-744.85,0.00040547,7]
[310225824,1704403856492,-9877.37,0.00040547,7]
[310225825,1704403856502,-500.0,0.00040547,7]
[310225827,1704403856512,-15428.1,0.00040547,7]
[310225830,1704403856521,-1089.44,0.00040547,7]
[310225831,1704403856531,-1654.23,0.00040547,7]
[310225834,1704403856540,-500.0,0.00040547,7]
[310225836,1704403856550,-970.41,0.00040547,7]
[310225838,1704403856560,-1937.04,0.00040547,7]
[310225840,1704403856569,-752.89,0.00040547,7]
[310225842,1704403856579,-8841.35,0.00040547,7]
[310225844,1704403856588,-2898.21,0.00040547,7]
[310225845,1704403856600,-629.17072785,0.00040547,7]
[310225848,1704403856609,-23122.23,0.00040547,7]
[310225850,1704403856619,-500.0,0.00040547,7]
[310225852,1704403856628,-6129.7,0.00040547,7]
[310225854,1704403856638,-500.0,0.00040547,7]
[310225855,1704403856647,-500.0,0.00040547,7]
[310225857,1704403856657,-603.41,0.00040547,7]
[310225860,1704403856667,-500.0,0.00040547,7]
[310225861,1704403856677,-1388.33,0.00040547,7]
[310225863,1704403856686,-500.0,0.00040547,7]
[310225866,1704403856696,-634.75,0.00040547,7]
[310225868,1704403856705,-617.62,0.00040547,7]
[310225870,1704403856715,-2149.26,0.00040547,7]
[310225872,1704403856725,-2932.15,0.00040547,7]
[310225874,1704403856734,-2164.45,0.00040547,7]
[310225876,1704403856743,-392.73746101,0.00040547,7]
[310225878,1704403856752,-500.0,0.00040547,7]
[310225880,1704403856762,-500.0,0.00040547,7]
[310225882,1704403856771,-500.0,0.00040547,7]
[310225884,1704403856780,-2032.27,0.00040547,7]
[310225886,1704403856794,-841.33,0.00040547,7]
[310225888,1704403856803,-768.62,0.00040547,7]
[310225890,1704403856814,-3336.95,0.00040547,7]
[310225892,1704403856823,-500.0,0.00040547,7]
[310225894,1704403856833,-608.97,0.00040547,7]
[310225896,1704403856842,-500.0,0.00040547,7]
[310225898,1704403856852,-500.0,0.00040547,7]
[310225900,1704403856861,-500.0,0.00040547,7]
[310225902,1704403856870,-306.0,0.000408,2]
[310225904,1704403856879,-3160.74481842,0.000408,60]
[310225906,1704403856888,-515.82,0.00040821,7]
[310225908,1704403856897,-500.0,0.00040821,2]
[310225910,1704403856906,-46721.58,0.00040821,3]
[310225912,1704403856916,-500.0,0.00040821,7]
[310225914,1704403856925,-558.49,0.00040821,7]
[310225916,1704403856934,-500.0,0.00040821,7]
[310225918,1704403856943,-500.0,0.00040821,7]
[310225920,1704403856952,-500.0,0.00040821,7]
[310225922,1704403856961,-365.27549407,0.00040821,7]
[310225924,1704403856971,-500.0,0.00040821,7]
[310225926,1704403856980,-500.0,0.00040821,7]
[310225928,1704403856989,-576.98,0.00040821,7]
[310225930,1704403856998,-500.0,0.00040821,7]
[310225932,1704403857007,-1233.61,0.00040821,7]
[310225934,1704403857016,-500.0,0.00040821,7]
[310225936,1704403857026,-517.5,0.00040821,7]
[310225938,1704403857034,-523.44417285,0.00040821,7]
[310225940,1704403857044,-500.0,0.00040821,7]
[310225942,1704403857052,-617.08,0.00040821,7]
[310225944,1704403857062,-500.0,0.00040821,7]
[310225946,1704403857071,-691.0,0.00040821,7]
[310225948,1704403857080,-500.0,0.00040821,7]
[310225950,1704403857089,-1564.77,0.00040821,2]
[310225952,1704403857098,-500.0,0.00040821,7]
[310225954,1704403857107,-552.88,0.00040821,7]
[310225956,1704403857117,-1532.91,0.00040821,7]
[310225958,1704403857126,-500.0,0.00040821,2]
[310225960,1704403857135,-500.0,0.00040821,7]
[310225962,1704403857143,-657.4,0.00040821,7]
[310225964,1704403857153,-500.0,0.00040821,7]
[310225966,1704403857162,-500.0,0.00040821,7]
[310225968,1704403857171,-750.84,0.00040821,7]
[310225970,1704403857181,-520.0,0.00040821,7]
[310225972,1704403857190,-500.0,0.00040821,7]
[310225974,1704403857200,-720.81,0.00040821,7]
[310225976,1704403857209,-1081.67,0.00040821,7]
[310225978,1704403857217,-500.0,0.00040821,7]
[310225980,1704403857226,-849.82,0.00040821,7]
[310225982,1704403857236,-1135.37,0.00040821,7]
[310225984,1704403857246,-3814.95,0.00040821,7]
[310225986,1704403857255,-512.69,0.00040821,7]
[310225988,1704403857264,-694.37,0.00040821,7]
[310225990,1704403857273,-748.22,0.00040821,7]
[310225992,1704403857283,-1373.82,0.00040821,7]
[310225994,1704403857292,-500.0,0.00040821,7]
[310225996,1704403857301,-500.0,0.00040821,7]
[310225997,1704403857310,-500.0,0.00040821,7]
[310225999,1704403857319,-1728.79,0.00040821,7]
[310226001,1704403857329,-500.0,0.00040821,7]
[310226003,1704403857338,-500.0,0.00040821,7]
[310226005,1704403857347,-623.76,0.00040821,7]
[310226007,1704403857356,-500.0,0.00040821,2]
[310226009,1704403857366,-180.27462238,0.00040821,7]
[310226011,1704403857375,-1506.71,0.00040821,7]
[310226013,1704403857384,-500.0,0.00040821,7]
[310226015,1704403857393,-1047.73,0.00040821,7]
[310226017,1704403857402,-500.0,0.00040821,7]
[310226019,1704403857412,-334.07705348,0.00040821,7]
[310226021,1704403857421,-500.0,0.00040821,7]
[310226023,1704403857431,-500.0,0.00040821,7]
[310226025,1704403857440,-500.0,0.00040821,7]
[310226027,1704403857450,-500.0,0.00040821,7]
[310226029,1704403857459,-705.34,0.00040821,7]
[310226031,1704403857469,-500.0,0.00040821,7]
[310226033,1704403857478,-744.85,0.00040821,7]
[310226035,1704403857487,-9877.37,0.00040821,7]
[310226038,1704403857498,-500.0,0.00040821,7]
[310226039,1704403857508,-15428.1,0.00040821,7]
[310226041,1704403857518,-1089.44,0.00040821,7]
[310226043,1704403857528,-1654.23,0.00040821,7]
[310226045,1704403857537,-500.0,0.00040821,7]
[310226047,1704403857547,-970.41,0.00040821,7]
[310226050,1704403857556,-1937.04,0.00040821,7]
[310226052,1704403857565,-752.89,0.00040821,7]
[310226053,1704403857575,-8841.35,0.00040821,7]
[310226055,1704403857585,-2898.21,0.00040821,7]
[310226057,1704403857594,-23122.23,0.00040821,7]
[310226060,1704403857603,-500.0,0.00040821,7]
[310226062,1704403857613,-6129.7,0.00040821,7]
[310226064,1704403857623,-500.0,0.00040821,7]
[310226066,1704403857633,-500.0,0.00040821,7]
[310226068,1704403857642,-603.41,0.00040821,7]
[310226069,1704403857652,-500.0,0.00040821,7]
[310226071,1704403857661,-1388.33,0.00040821,7]
[310226073,1704403857671,-500.0,0.00040821,7]
[310226075,1704403857680,-634.75,0.00040821,7]
[310226077,1704403857690,-617.62,0.00040821,7]
[310226080,1704403857700,-2149.26,0.00040821,7]
[310226081,1704403857710,-2164.45,0.00040821,7]
[310226083,1704403857719,-2932.15,0.00040821,7]
[310226086,1704403857729,-500.0,0.00040821,7]
[310226088,1704403857739,-500.0,0.00040821,7]
[310226090,1704403857748,-500.0,0.00040821,7]
[310226092,1704403857758,-2032.27,0.00040821,7]
[310226093,1704403857767,-841.33,0.00040821,7]
[310226095,1704403857777,-768.62,0.00040821,7]
[310226097,1704403857787,-3336.95,0.00040821,7]
[310226099,1704403857797,-500.0,0.00040821,7]
[310226101,1704403857808,-608.97,0.00040821,7]
[310226103,1704403857817,-500.0,0.00040821,7]
[310226105,1704403857826,-507.98184178,0.00040821,7]
[310226107,1704403857835,-500.0,0.00040821,7]
[310226109,1704403857845,-151.0,0.00040821,2]
[310226111,1704403857855,-235.998534,0.00040821,2]
[310226113,1704403857864,-200.0,0.000409,4]
[310226115,1704403857873,-1000.0,0.00041,41]
[310226117,1704403857883,-154.87609912,0.00041,2]
[310226119,1704403857892,-1055.85364277,0.00041,7]
[310226121,1704403857902,-16669.77816299,0.00041,10]
[310226123,1704403857911,-528.32658317,0.00041,7]
[310226125,1704403857920,-7288.28469011,0.00041,2]
[310226127,1704403857930,-2504.33625294,0.00041027,5]
[310226129,1704403857939,-515.82,0.00041095,7]
[310226131,1704403857949,-500.0,0.00041095,2]
[310226133,1704403857958,-46721.58,0.00041095,3]
[310226135,1704403857967,-500.0,0.00041095,7]
[310226137,1704403857976,-313.18348848,0.00041095,12]
[310226139,1704403857986,-558.49,0.00041095,7]
[310226141,1704403857995,-512.8058645,0.00041095,7]
[310226143,1704403858006,-500.0,0.00041095,7]
[310226154,1704403858108,-500.0,0.00041095,7]
[310226156,1704403858118,-500.0,0.00041095,7]
[310226158,1704403858127,-500.0,0.00041095,7]
[310226160,1704403858136,-576.98,0.00041095,7]
[310226162,1704403858145,-500.0,0.00041095,7]
[310226164,1704403858155,-1233.61,0.00041095,7]
[310226166,1704403858164,-500.0,0.00041095,7]
[310226168,1704403858173,-517.5,0.00041095,7]
[310226170,1704403858183,-500.0,0.00041095,7]
[310226172,1704403858192,-617.08,0.00041095,7]
[310226174,1704403858205,-500.0,0.00041095,7]
[310226176,1704403858214,-691.0,0.00041095,7]
[310226178,1704403858223,-500.0,0.00041095,7]
[310226180,1704403858232,-1564.77,0.00041095,2]
[310226182,1704403858242,-500.0,0.00041095,7]
[310226184,1704403858251,-552.88,0.00041095,7]
[310226186,1704403858260,-1532.91,0.00041095,7]
[310226188,1704403858269,-500.0,0.00041095,2]
[310226190,1704403858278,-500.0,0.00041095,7]
[310226192,1704403858286,-657.4,0.00041095,7]
[310226194,1704403858296,-500.0,0.00041095,7]
[310226196,1704403858305,-297.55460533,0.00041095,7]
[310226198,1704403858314,-750.84,0.00041095,7]
[310226200,1704403858324,-520.0,0.00041095,7]
[310226202,1704403858333,-500.0,0.00041095,7]
[310226204,1704403858342,-720.81,0.00041095,7]
[310226206,1704403858351,-1081.67,0.00041095,7]
[310226208,1704403858360,-500.0,0.00041095,7]
[310226210,1704403858369,-849.82,0.00041095,7]
[310226211,1704403858378,-1135.37,0.00041095,7]
[310226213,1704403858387,-3814.95,0.00041095,7]
[310226216,1704403858398,-512.69,0.00041095,7]
[310226217,1704403858407,-694.37,0.00041095,7]
[310226219,1704403858417,-748.22,0.00041095,7]
[310226221,1704403858426,-1373.82,0.00041095,7]
[310226223,1704403858436,-176.42628113,0.00041095,7]
[310226225,1704403858445,-381.70476233,0.00041095,7]
[310226227,1704403858454,-500.0,0.00041095,7]
[310226229,1704403858464,-507.01527427,0.00041095,7]
[310226231,1704403858474,-1728.79,0.00041095,7]
[310226233,1704403858483,-500.0,0.00041095,7]
[310226235,1704403858493,-500.0,0.00041095,7]
[310226237,1704403858502,-623.76,0.00041095,7]
[310226239,1704403858511,-500.0,0.00041095,2]
[310226241,1704403858521,-1506.71,0.00041095,7]
[310226243,1704403858530,-500.0,0.00041095,7]
[310226245,1704403858539,-1047.73,0.00041095,7]
[310226247,1704403858548,-563.83878311,0.00041095,7]
[310226249,1704403858558,-500.0,0.00041095,7]
[310226251,1704403858567,-500.0,0.00041095,7]
[310226253,1704403858576,-500.0,0.00041095,7]
[310226255,1704403858586,-500.0,0.00041095,7]
[310226257,1704403858595,-705.34,0.00041095,7]
[310226259,1704403858604,-500.0,0.00041095,7]
[310226261,1704403858613,-744.85,0.00041095,7]
[310226263,1704403858623,-9877.37,0.00041095,7]
[310226265,1704403858632,-500.0,0.00041095,7]
[310226268,1704403858642,-15428.1,0.00041095,7]
[310226269,1704403858651,-1089.44,0.00041095,7]
[310226272,1704403858661,-1654.23,0.00041095,7]
[310226273,1704403858670,-500.0,0.00041095,7]
[310226276,1704403858681,-970.41,0.00041095,7]
[310226277,1704403858691,-1937.04,0.00041095,7]
[310226279,1704403858700,-752.89,0.00041095,7]
[310226281,1704403858710,-1499.428442,0.00041095,14]
[310226283,1704403858720,-8841.35,0.00041095,7]
[310226285,1704403858730,-2898.21,0.00041095,7]
[310226287,1704403858739,-23122.23,0.00041095,7]
[310226289,1704403858750,-500.0,0.00041095,7]
[310226291,1704403858760,-6129.7,0.00041095,7]
[310226293,1704403858770,-559.7322719,0.00041095,7]
[310226295,1704403858779,-500.0,0.00041095,7]
[310226297,1704403858789,-603.41,0.00041095,7]
[310226299,1704403858798,-7783.95285866,0.00041095,14]
[310226301,1704403858808,-500.0,0.00041095,7]
[310226303,1704403858818,-1388.33,0.00041095,7]
[310226305,1704403858827,-500.0,0.00041095,7]
[310226307,1704403858837,-634.75,0.00041095,7]
[310226309,1704403858847,-617.62,0.00041095,7]
[310226311,1704403858857,-2149.26,0.00041095,7]
[310226313,1704403858866,-2164.45,0.00041095,7]
[310226315,1704403858875,-2932.15,0.00041095,7]
[310226317,1704403858885,-500.0,0.00041095,7]
[310226319,1704403858894,-500.0,0.00041095,7]
[310226321,1704403858904,-500.0,0.00041095,7]
[310226323,1704403858913,-841.33,0.00041095,7]
[310226325,1704403858922,-2032.27,0.00041095,7]
[310226327,1704403858931,-768.62,0.00041095,7]
[310226329,1704403858940,-3336.95,0.00041095,7]
[310226331,1704403858950,-500.0,0.00041095,7]
[310226333,1704403858959,-608.97,0.00041095,7]
[310226335,1704403858968,-500.0,0.00041095,7]
[310226337,1704403858977,-500.0,0.00041095,7]
[310226339,1704403858986,-151.0,0.00041095,2]
[310226341,1704403858995,-3526.8904582,0.00041096,15]
[310226343,1704403859005,-176.1370616,0.00041096,2]
[310226344,1704403859014,-180.81454792,0.000411,10]
[310226346,1704403859023,-180.81454792,0.000411,10]
[310226348,1704403859033,-180.81,0.000411,10]
[310226350,1704403859042,-154.98389821,0.000411,10]
[310226352,1704403859052,-154.98389821,0.000411,10]
[310226354,1704403859061,-154.98389821,0.000411,10]
[310226356,1704403859070,-154.98389821,0.000411,10]
[310226358,1704403859079,-154.98389821,0.000411,10]
[310226360,1704403859088,-154.98389821,0.000411,10]
[310226362,1704403859098,-154.98389821,0.000411,10]
[310226364,1704403859107,-154.98389821,0.000411,10]
[310226366,1704403859116,-154.98389821,0.000411,10]
[310226368,1704403859125,-154.98389821,0.000411,10]
[310226370,1704403859133,-154.98389821,0.000411,10]
[310226372,1704403859142,-154.98389821,0.000411,10]
[310226374,1704403859152,-154.98389821,0.000411,10]
[310226376,1704403859160,-154.98,0.000411,10]
[310226378,1704403859169,-197.24429997,0.000411,10]
[310226380,1704403859179,-197.24,0.000411,10]
[310226382,1704403859189,-151.0,0.0004119,2]
[310226384,1704403859199,-700.0,0.000412,2]
[310226386,1704403859208,-150.74373565,0.00041292,2]
[310226388,1704403859217,-250.06576819,0.00041292,2]
[310226390,1704403859226,-56470.09877982,0.000413,30]
[310229700,1704404836115,-153.38327678,0.00032387,5]
[310229701,1704404955109,-1.38457145,0.00032387,5]
[310229702,1704404955131,-1814.26014117,0.00032387,5]
[310229703,1704404955169,-20.74685674,0.00032387,2]
[310229745,1704405032654,-388.43013769,0.00032387,2]
[310229747,1704405032665,-768.79202074,0.00032387,5]
[310229748,1704405032673,-164.3665171,0.00032388,2]
[310229750,1704405032683,-261.464588,0.00032948,2]
[310229752,1704405032692,-830.87834941,0.00033537,2]
[310229771,1704405032859,-1000.0,0.00034424,7]
[310229773,1704405032873,-154.76784823,0.00034425,5]
[310229774,1704405032883,-1600.0,0.00034521,2]
[310229776,1704405032893,-7795.99419883,0.00035,4]
[310229778,1704405032903,-590.45108746,0.00035,2]
[310229780,1704405032913,-4278.82706661,0.00035,4]
[310229782,1704405032922,-1454.89912219,0.00035,14]
[310229783,1704405032932,-216.475746,0.00035494,2]
[310229785,1704405032942,-401.941653,0.00035616,120]
[310229787,1704405032952,-3539.86097792,0.00035797,2]
[310229789,1704405032961,-1600.0,0.00035798,2]
[310229790,1704405032973,-500.0,0.000363,7]
[310229792,1704405032983,-1600.0,0.00037075,2]
[310229794,1704405032992,-500.0,0.000373,7]
[310229795,1704405033001,-1604.99,0.00038231,3]
[310229797,1704405033011,-2748.31,0.00038231,3]
[310229799,1704405033021,-2290.26,0.00038231,3]
[310229801,1704405033031,-1908.55,0.00038231,3]
[310229802,1704405033041,-27716.08860662,0.00038241,4]
[310229834,1704405038794,-1988.06600003,0.00037343,2]
[310229836,1704405038806,-252.19685897,0.00037343,2]
[310229838,1704405038815,-1751.26030635,0.00038241,4]
[310229844,1704405038911,-635.14326128,0.00038241,4]
[310229845,1704405038923,-3319.03843915,0.00038241,4]
[310229846,1704405038973,-70406.56340867,0.00038241,4]
[310229847,1704405038982,-161.82608076,0.00038252,2]
[310229848,1704405038992,-2306.19255086,0.00038253,2]